[Event "Open Nuevo Centro. Jornada 1"]
[Site "Chess.com"]
[Date "2020.06.19"]
[Round "1"]
[White "Ferrero Sanchis, Enrique"]
[Black "Sanchis Bon, Sergi"]
[Result "1-0"]
[WhiteElo "1523"]
[BlackElo "399"]
[TimeControl "180+2"]
[EndTime "10:37:20 PDT"]
[Termination "Victoria de kikeferrero por tiempo"]

1. d4 {[%clk 0:03:00.8]} 1... Nf6 {[%clk 0:02:57.3]} 2. Bf4 {[%clk 0:03:00.6]}
2... Nc6 {[%clk 0:02:57]} 3. Nf3 {[%clk 0:03:00.9]} 3... d5 {[%clk 0:02:57.6]}
4. e3 {[%clk 0:03:01.4]} 4... Bf5 {[%clk 0:02:58.2]} 5. Nbd2 {[%clk 0:03:01.5]}
5... e6 {[%clk 0:02:59.2]} 6. c3 {[%clk 0:03:02.2]} 6... Bd6 {[%clk 0:02:59.4]}
7. Ne5 {[%clk 0:03:02.2]} 7... Nxe5 {[%clk 0:02:58.1]} 8. dxe5 {[%clk
0:03:02.4]} 8... Bxe5 {[%clk 0:02:41.7]} 9. Bxe5 {[%clk 0:03:02.3]} 9... Ne4
{[%clk 0:02:23.9]} 10. Nxe4 {[%clk 0:03:00.8]} 10... Bxe4 {[%clk 0:02:19.2]} 11.
f3 {[%clk 0:02:59.2]} 11... Bg6 {[%clk 0:02:14.5]} 12. Bxg7 {[%clk 0:02:56.6]}
12... Rg8 {[%clk 0:02:05]} 13. Be5 {[%clk 0:02:54]} 13... f6 {[%clk 0:02:02.9]}
14. Bg3 {[%clk 0:02:53.5]} 14... h5 {[%clk 0:01:53.8]} 15. Bd3 {[%clk
0:02:52.8]} 15... Bxd3 {[%clk 0:01:50.9]} 16. Qxd3 {[%clk 0:02:52.1]} 16... f5
{[%clk 0:01:48.6]} 17. O-O {[%clk 0:02:45.8]} 17... c5 {[%clk 0:01:48]} 18. e4
{[%clk 0:02:44.7]} 18... c4 {[%clk 0:01:46.6]} 19. Qd4 {[%clk 0:02:39.7]} 19...
fxe4 {[%clk 0:01:38.5]} 20. fxe4 {[%clk 0:02:39.5]} 20... dxe4 {[%clk
0:01:29.7]} 21. Qxd8+ {[%clk 0:02:38.3]} 21... Rxd8 {[%clk 0:01:27]} 22. Rad1
{[%clk 0:02:35.8]} 22... Rxd1 {[%clk 0:01:25.1]} 23. Rxd1 {[%clk 0:02:35.5]}
23... Kf7 {[%clk 0:01:23.7]} 24. Rd4 {[%clk 0:02:35]} 24... b5 {[%clk
0:01:13.7]} 25. Rxe4 {[%clk 0:02:34.7]} 25... a5 {[%clk 0:01:00.2]} 26. Re5
{[%clk 0:02:33.1]} 26... h4 {[%clk 0:00:20.5]} 27. Be1 {[%clk 0:02:29]} 27...
Rb8 {[%clk 0:00:13.5]} 28. Bxh4 {[%clk 0:02:27.5]} 28... Rb7 {[%clk 0:00:12.4]}
29. Kf2 {[%clk 0:02:23.3]} 29... a4 {[%clk 0:00:13.1]} 30. a3 {[%clk 0:02:23]}
30... b4 {[%clk 0:00:12.2]} 31. cxb4 {[%clk 0:02:22.1]} 31... c3 {[%clk
0:00:12.9]} 32. bxc3 {[%clk 0:02:22.1]} 32... Rd7 {[%clk 0:00:10.6]} 33. Ke2
{[%clk 0:02:21.5]} 33... Rd6 {[%clk 0:00:09.7]} 34. Ra5 {[%clk 0:02:18.8]} 34...
Rc6 {[%clk 0:00:09.3]} 35. Be1 {[%clk 0:02:14.8]} 35... Rc4 {[%clk 0:00:09.5]}
36. Rxa4 {[%clk 0:02:12.9]} 36... Re4+ {[%clk 0:00:09.6]} 37. Kd2 {[%clk
0:02:11.9]} 37... Rg4 {[%clk 0:00:06.6]} 38. g3 {[%clk 0:02:11.2]} 38... Re4
{[%clk 0:00:05.6]} 39. Ra7+ {[%clk 0:02:09.7]} 39... Kf6 {[%clk 0:00:03.8]} 40.
c4 {[%clk 0:02:09.2]} 40... Rxc4 {[%clk 0:00:03]} 41. Kd3 {[%clk 0:02:09]} 41...
Rc6 {[%clk 0:00:03.1]} 42. Bc3+ {[%clk 0:02:08.2]} 1

[Event "Open Nuevo Centro. Jornada 1"]
[Site "Chess.com"]
[Date "2020.06.19"]
[Round "1"]
[White "Martinez Villena, David"]
[Black "Zakharash, Georgii"]
[Result "1-0"]
[WhiteElo "1648"]
[BlackElo "861"]
[TimeControl "180+2"]
[EndTime "10:37:31 PDT"]
[Termination "Victoria de DavidMVAlaquas por jaque mate"]

1. e4 {[%clk 0:03:01.9]} 1... e5 {[%clk 0:03:00]} 2. Nf3 {[%clk 0:03:02.3]} 2...
Nc6 {[%clk 0:03:00.1]} 3. Bc4 {[%clk 0:03:03.3]} 3... Bc5 {[%clk 0:02:59.4]} 4.
b4 {[%clk 0:03:03.7]} 4... Bxb4 {[%clk 0:02:58.4]} 5. c3 {[%clk 0:03:04.7]} 5...
Bc5 {[%clk 0:02:58]} 6. d4 {[%clk 0:03:04.7]} 6... exd4 {[%clk 0:02:58.1]} 7.
O-O {[%clk 0:03:00.3]} 7... dxc3 {[%clk 0:02:56.5]} 8. Qd5 {[%clk 0:02:59.6]}
8... Qe7 {[%clk 0:02:46]} 9. Nxc3 {[%clk 0:02:54.3]} 9... Nf6 {[%clk 0:02:42.8]}
10. Qd1 {[%clk 0:02:35]} 10... O-O {[%clk 0:02:41]} 11. Bg5 {[%clk 0:02:25.4]}
11... Bb6 {[%clk 0:02:29.8]} 12. Nd5 {[%clk 0:02:23]} 12... d6 {[%clk
0:02:19.5]} 13. Nxe7+ {[%clk 0:02:19.6]} 13... Nxe7 {[%clk 0:01:44.9]} 14. Bxf6
{[%clk 0:02:16.6]} 14... gxf6 {[%clk 0:01:44.3]} 15. Nh4 {[%clk 0:02:05.8]}
15... Be6 {[%clk 0:01:39.8]} 16. Bd3 {[%clk 0:01:59.1]} 16... Bd4 {[%clk
0:01:32.8]} 17. Rb1 {[%clk 0:01:51.5]} 17... b6 {[%clk 0:01:31.2]} 18. Qh5
{[%clk 0:01:41.8]} 18... Kh8 {[%clk 0:01:14.7]} 19. e5 {[%clk 0:01:41.9]} 19...
f5 {[%clk 0:01:13.5]} 20. exd6 {[%clk 0:01:29.6]} 20... cxd6 {[%clk 0:01:13.4]}
21. Rbe1 {[%clk 0:01:28.4]} 21... Rac8 {[%clk 0:01:04]} 22. Nxf5 {[%clk
0:00:51.7]} 22... Nxf5 {[%clk 0:01:00.5]} 23. Bxf5 {[%clk 0:00:52.4]} 23... Bxf5
{[%clk 0:01:00.4]} 24. Qxf5 {[%clk 0:00:53.7]} 24... Bc5 {[%clk 0:00:56.1]} 25.
Re4 {[%clk 0:00:51.7]} 25... Rfd8 {[%clk 0:00:26]} 26. Rh4 {[%clk 0:00:42.5]}
26... Kg8 {[%clk 0:00:25.7]} 27. Rxh7 {[%clk 0:00:40.2]} 27... Rc7 {[%clk
0:00:21.4]} 28. Qg5+ {[%clk 0:00:32.6]} 28... Kf8 {[%clk 0:00:21.7]} 29. Qxd8#
{[%clk 0:00:33.1]} 1

[Event "Open Nuevo Centro. Jornada 1"]
[Site "Chess.com"]
[Date "2020.06.19"]
[Round "1"]
[White "Borissov, Juli�n"]
[Black "Romero Barkouk, Rayan "]
[Result "1-0"]
[WhiteElo "1841"]
[BlackElo "1099"]
[TimeControl "180+2"]
[EndTime "10:37:36 PDT"]
[Termination "Victoria de julianborisov por abandono"]

1. e4 {[%clk 0:02:59.8]} 1... e5 {[%clk 0:03:00.6]} 2. Nf3 {[%clk 0:02:59.7]}
2... Nc6 {[%clk 0:03:01.9]} 3. Bb5 {[%clk 0:02:59]} 3... d6 {[%clk 0:02:58.9]}
4. c3 {[%clk 0:02:53.9]} 4... Nf6 {[%clk 0:02:58.1]} 5. d3 {[%clk 0:02:53]} 5...
Bg4 {[%clk 0:02:50.1]} 6. h3 {[%clk 0:02:47.2]} 6... Bxf3 {[%clk 0:02:48.4]} 7.
Qxf3 {[%clk 0:02:46.7]} 7... Be7 {[%clk 0:02:46.4]} 8. Nd2 {[%clk 0:02:43]} 8...
O-O {[%clk 0:02:43.9]} 9. O-O {[%clk 0:02:43]} 9... Qd7 {[%clk 0:02:44.6]} 10.
Re1 {[%clk 0:02:31.8]} 10... a6 {[%clk 0:02:41.7]} 11. Ba4 {[%clk 0:02:32.3]}
11... b5 {[%clk 0:02:40.9]} 12. Bc2 {[%clk 0:02:33]} 12... d5 {[%clk 0:02:40.2]}
13. Nf1 {[%clk 0:02:29.3]} 13... dxe4 {[%clk 0:02:36.9]} 14. dxe4 {[%clk
0:02:28.7]} 14... b4 {[%clk 0:02:36.3]} 15. Ng3 {[%clk 0:02:20.6]} 15... bxc3
{[%clk 0:02:36.1]} 16. bxc3 {[%clk 0:02:22.5]} 16... Rab8 {[%clk 0:02:24.4]} 17.
Nf5 {[%clk 0:01:54.4]} 17... g6 {[%clk 0:02:17.9]} 18. Nxe7+ {[%clk 0:01:45.2]}
18... Qxe7 {[%clk 0:02:17.3]} 19. a4 {[%clk 0:01:36.2]} 19... Kg7 {[%clk
0:02:01.9]} 20. Ba3 {[%clk 0:01:33.7]} 20... Qd7 {[%clk 0:01:49.4]} 21. Rad1
{[%clk 0:01:32.9]} 21... Qe6 {[%clk 0:01:40.4]} 22. Bxf8+ {[%clk 0:01:26.5]}
22... Rxf8 {[%clk 0:01:41]} 23. Qd3 {[%clk 0:01:19.3]} 23... Rd8 {[%clk
0:01:35.3]} 24. Qxa6 {[%clk 0:01:18.8]} 24... Rxd1 {[%clk 0:01:31.1]} 25. Rxd1
{[%clk 0:01:19.4]} 25... Qe8 {[%clk 0:01:17.7]} 26. Qb5 {[%clk 0:01:15.3]} 26...
Qe6 {[%clk 0:01:15.2]} 27. Bb3 {[%clk 0:01:14.7]} 27... Qe8 {[%clk 0:01:11.9]}
28. a5 {[%clk 0:01:12.9]} 28... Qa8 {[%clk 0:01:06.7]} 29. a6 {[%clk 0:01:11.2]}
29... Nd8 {[%clk 0:01:03.8]} 30. Qc4 {[%clk 0:01:08.6]} 30... Ne6 {[%clk
0:01:02.5]} 31. f3 {[%clk 0:00:50.4]} 31... Ng5 {[%clk 0:00:59.4]} 32. h4 {[%clk
0:00:43.5]} 32... Ne6 {[%clk 0:00:47.3]} 33. Qb5 {[%clk 0:00:42.1]} 33... c6
{[%clk 0:00:46.1]} 34. Qb7 {[%clk 0:00:42.4]} 34... Qd8 {[%clk 0:00:42.7]} 35.
Rxd8 {[%clk 0:00:41.8]} 1

[Event "Open Nuevo Centro. Jornada 1"]
[Site "Chess.com"]
[Date "2020.06.19"]
[Round "1"]
[White "Garcia Oviedo, Alejandro"]
[Black "Miranda Calvo, Max Rodrigo"]
[Result "1-0"]
[WhiteElo "1875"]
[BlackElo "1131"]
[TimeControl "180+2"]
[EndTime "10:37:41 PDT"]
[Termination "Victoria de alexgarov por abandono"]

1. g3 {[%clk 0:02:59.3]} 1... e5 {[%clk 0:02:58]} 2. Bg2 {[%clk 0:03:01.2]} 2...
Bc5 {[%clk 0:02:57.4]} 3. e3 {[%clk 0:03:01.7]} 3... Nc6 {[%clk 0:02:54.5]} 4.
Ne2 {[%clk 0:03:01.1]} 4... d5 {[%clk 0:02:50]} 5. O-O {[%clk 0:03:00.7]} 5...
Nge7 {[%clk 0:02:49.4]} 6. d4 {[%clk 0:03:00.5]} 6... exd4 {[%clk 0:02:45.9]} 7.
exd4 {[%clk 0:02:59]} 7... Bd6 {[%clk 0:02:44.4]} 8. Nbc3 {[%clk 0:02:54.9]}
8... Be6 {[%clk 0:02:43.9]} 9. Nf4 {[%clk 0:02:52]} 9... Bxf4 {[%clk 0:02:44.2]}
10. Bxf4 {[%clk 0:02:52.5]} 10... O-O {[%clk 0:02:44.2]} 11. Nb5 {[%clk
0:02:53.5]} 11... Rc8 {[%clk 0:02:27.9]} 12. Re1 {[%clk 0:02:34.6]} 12... a6
{[%clk 0:02:26.6]} 13. Nc3 {[%clk 0:02:28.6]} 13... Qd7 {[%clk 0:02:22.1]} 14.
Na4 {[%clk 0:02:15.6]} 14... b6 {[%clk 0:02:16.1]} 15. Nc3 {[%clk 0:02:08.1]}
15... Ng6 {[%clk 0:02:14.2]} 16. Be3 {[%clk 0:02:03.3]} 16... Rfe8 {[%clk
0:02:07.5]} 17. h4 {[%clk 0:02:04.1]} 17... Bh3 {[%clk 0:01:49.7]} 18. Bxd5
{[%clk 0:01:58.3]} 18... Nb4 {[%clk 0:01:25.1]} 19. Bh1 {[%clk 0:01:45.1]} 19...
Bf5 {[%clk 0:01:12.6]} 20. Rc1 {[%clk 0:01:42.2]} 20... c5 {[%clk 0:00:43.3]}
21. d5 {[%clk 0:01:31.6]} 21... a5 {[%clk 0:00:16.8]} 22. a3 {[%clk 0:01:30.7]}
22... Na6 {[%clk 0:00:17.8]} 23. Qe2 {[%clk 0:01:10.4]} 23... Qe7 {[%clk
0:00:16.2]} 24. Qxa6 {[%clk 0:01:09.9]} 24... Rb8 {[%clk 0:00:15.9]} 25. Bd2
{[%clk 0:01:03.7]} 25... Qd7 {[%clk 0:00:15]} 26. Rxe8+ {[%clk 0:01:04]} 26...
Rxe8 {[%clk 0:00:16.5]} 27. Qxb6 {[%clk 0:01:04.1]} 27... Qe7 {[%clk 0:00:16.7]}
28. Qxa5 {[%clk 0:01:02]} 28... Nxh4 {[%clk 0:00:11.7]} 29. gxh4 {[%clk
0:00:53.8]} 29... Qxh4 {[%clk 0:00:13.6]} 30. Bg2 {[%clk 0:00:53.8]} 30... Qh1+
{[%clk 0:00:15.5]} 31. Bxh1 {[%clk 0:00:53.8]} 1

[Event "Open Nuevo Centro. Jornada 1"]
[Site "Chess.com"]
[Date "2020.06.19"]
[Round "1"]
[White "Simarro Peir�, Andr�s"]
[Black "Bendayan Claros, Aaron"]
[Result "0-1"]
[WhiteElo "809"]
[BlackElo "1647"]
[TimeControl "180+2"]
[EndTime "10:38:04 PDT"]
[Termination "Victoria de Cuajada_Zero por jaque mate"]

1. e4 {[%clk 0:03:01.9]} 1... c6 {[%clk 0:03:00.1]} 2. Nf3 {[%clk 0:02:58.7]}
2... d5 {[%clk 0:03:00]} 3. exd5 {[%clk 0:02:50.4]} 3... cxd5 {[%clk 0:03:01.9]}
4. d4 {[%clk 0:02:48]} 4... Nc6 {[%clk 0:03:01.5]} 5. Nc3 {[%clk 0:02:45.3]}
5... Nf6 {[%clk 0:03:01.9]} 6. Be2 {[%clk 0:02:42.9]} 6... g6 {[%clk 0:03:02.4]}
7. Be3 {[%clk 0:02:41.7]} 7... Bg7 {[%clk 0:03:03]} 8. O-O {[%clk 0:02:32.3]}
8... O-O {[%clk 0:02:59.1]} 9. h3 {[%clk 0:02:18.7]} 9... a6 {[%clk 0:02:53.9]}
10. Qd2 {[%clk 0:02:12.5]} 10... Ne4 {[%clk 0:02:53.9]} 11. Nxe4 {[%clk
0:02:11.5]} 11... dxe4 {[%clk 0:02:55.8]} 12. Ng5 {[%clk 0:02:03.8]} 12... Nxd4
{[%clk 0:02:51.6]} 13. Bxd4 {[%clk 0:02:01.4]} 13... Qxd4 {[%clk 0:02:52.1]} 14.
Qxd4 {[%clk 0:01:59.3]} 14... Bxd4 {[%clk 0:02:53.3]} 15. Nxe4 {[%clk
0:01:59.4]} 15... Bxb2 {[%clk 0:02:53.6]} 16. Rab1 {[%clk 0:01:53.4]} 16... Bg7
{[%clk 0:02:53.2]} 17. c4 {[%clk 0:01:46.7]} 17... Bf5 {[%clk 0:02:51]} 18. Bd3
{[%clk 0:01:36.8]} 18... Rab8 {[%clk 0:02:47.5]} 19. c5 {[%clk 0:01:32.9]} 19...
Rfd8 {[%clk 0:02:41.8]} 20. Rfd1 {[%clk 0:01:17.6]} 20... Bd4 {[%clk 0:02:37.1]}
21. Rbc1 {[%clk 0:00:51.9]} 21... Rbc8 {[%clk 0:02:27.7]} 22. Rc4 {[%clk
0:00:40]} 22... Bxe4 {[%clk 0:02:24.6]} 23. Bxe4 {[%clk 0:00:36.9]} 23... Bxf2+
{[%clk 0:02:25.6]} 24. Kxf2 {[%clk 0:00:34.6]} 24... Rxd1 {[%clk 0:02:26.6]} 25.
Bxb7 {[%clk 0:00:33.9]} 25... Rc7 {[%clk 0:02:27.6]} 26. Bf3 {[%clk 0:00:32.7]}
26... Rd2+ {[%clk 0:02:27.8]} 27. Kg3 {[%clk 0:00:29.5]} 27... Rxa2 {[%clk
0:02:27.5]} 28. Bd5 {[%clk 0:00:21]} 28... Ra5 {[%clk 0:02:23.8]} 29. Be4 {[%clk
0:00:17.2]} 29... Raxc5 {[%clk 0:02:23.2]} 30. Rb4 {[%clk 0:00:17.5]} 30... a5
{[%clk 0:02:22.9]} 31. Rb3 {[%clk 0:00:17.6]} 31... Rc3+ {[%clk 0:02:22.1]} 32.
Rxc3 {[%clk 0:00:18.7]} 32... Rxc3+ {[%clk 0:02:24]} 33. Bf3 {[%clk 0:00:19.7]}
33... Rxf3+ {[%clk 0:02:21.8]} 34. Kxf3 {[%clk 0:00:20.1]} 34... a4 {[%clk
0:02:23.7]} 35. Ke3 {[%clk 0:00:21.7]} 35... a3 {[%clk 0:02:25.1]} 36. Kd2
{[%clk 0:00:21.5]} 36... a2 {[%clk 0:02:27]} 37. Kc2 {[%clk 0:00:22.5]} 37...
a1=Q {[%clk 0:02:27.4]} 38. Kb3 {[%clk 0:00:24.4]} 38... Qg1 {[%clk 0:02:28.1]}
39. Kb4 {[%clk 0:00:26.2]} 39... Qxg2 {[%clk 0:02:29.5]} 40. Kc4 {[%clk
0:00:27.3]} 40... Qxh3 {[%clk 0:02:30.3]} 41. Kd4 {[%clk 0:00:28.8]} 41... Qf5
{[%clk 0:02:30.7]} 42. Ke3 {[%clk 0:00:28.6]} 42... h5 {[%clk 0:02:31.2]} 43.
Kd4 {[%clk 0:00:28.3]} 43... h4 {[%clk 0:02:32]} 44. Ke3 {[%clk 0:00:29.9]}
44... h3 {[%clk 0:02:32.8]} 45. Kd4 {[%clk 0:00:31.2]} 45... h2 {[%clk
0:02:32.8]} 46. Ke3 {[%clk 0:00:31.1]} 46... Qg4 {[%clk 0:02:32.5]} 47. Kf2
{[%clk 0:00:31.2]} 47... f6 {[%clk 0:02:28.8]} 48. Ke3 {[%clk 0:00:31]} 48... e6
{[%clk 0:02:24.4]} 49. Kf2 {[%clk 0:00:29.4]} 49... g5 {[%clk 0:02:24.5]} 50.
Kf1 {[%clk 0:00:28.2]} 50... Qg3 {[%clk 0:02:14.8]} 51. Ke2 {[%clk 0:00:26.1]}
51... f5 {[%clk 0:02:09.6]} 52. Kf1 {[%clk 0:00:25.2]} 52... e5 {[%clk
0:02:08.1]} 53. Ke2 {[%clk 0:00:23.9]} 53... f4 {[%clk 0:02:07.8]} 54. Kf1
{[%clk 0:00:21.3]} 54... e4 {[%clk 0:02:08.3]} 55. Ke2 {[%clk 0:00:21.8]} 55...
Qg2+ {[%clk 0:02:07.5]} 56. Ke1 {[%clk 0:00:21.9]} 56... h1=R# {[%clk
0:02:06.6]} 0

[Event "Open Nuevo Centro. Jornada 1"]
[Site "Chess.com"]
[Date "2020.06.19"]
[Round "1"]
[White "Morata Briones, Carlos"]
[Black "Gimenez Saiz, Jose Raul"]
[Result "0-1"]
[WhiteElo "550"]
[BlackElo "1534"]
[TimeControl "180+2"]
[EndTime "10:38:09 PDT"]
[Termination "Victoria de rango013 por jaque mate"]

1. e4 {[%clk 0:02:54.9]} 1... d5 {[%clk 0:03:00.1]} 2. Nc3 {[%clk 0:02:51.2]}
2... d4 {[%clk 0:02:58.9]} 3. Nd5 {[%clk 0:02:51.6]} 3... e6 {[%clk 0:02:59]} 4.
Nf4 {[%clk 0:02:49.9]} 4... Nf6 {[%clk 0:02:59.7]} 5. d3 {[%clk 0:02:46.9]} 5...
e5 {[%clk 0:02:59.9]} 6. Nh5 {[%clk 0:02:44]} 6... Nbd7 {[%clk 0:02:48]} 7.
Nxf6+ {[%clk 0:02:41.7]} 7... Nxf6 {[%clk 0:02:48.3]} 8. Bg5 {[%clk 0:02:33.8]}
8... h6 {[%clk 0:02:45.1]} 9. Bxf6 {[%clk 0:02:32.9]} 9... Qxf6 {[%clk
0:02:45.4]} 10. Be2 {[%clk 0:02:32.4]} 10... Bb4+ {[%clk 0:02:40.6]} 11. Kf1
{[%clk 0:02:24.5]} 11... O-O {[%clk 0:02:36.3]} 12. Nf3 {[%clk 0:02:23.4]} 12...
Bg4 {[%clk 0:02:34.6]} 13. h3 {[%clk 0:02:15]} 13... Be6 {[%clk 0:02:31.7]} 14.
g4 {[%clk 0:02:11.7]} 14... Qf4 {[%clk 0:02:24.8]} 15. a3 {[%clk 0:01:58.3]}
15... Be7 {[%clk 0:01:48.2]} 16. Qd2 {[%clk 0:01:53.7]} 16... Qf6 {[%clk
0:01:39]} 17. c3 {[%clk 0:01:51.7]} 17... c5 {[%clk 0:01:37]} 18. b4 {[%clk
0:01:45]} 18... b6 {[%clk 0:01:36.9]} 19. cxd4 {[%clk 0:01:41.1]} 19... cxd4
{[%clk 0:01:37.4]} 20. Rc1 {[%clk 0:01:30.7]} 20... Rac8 {[%clk 0:01:37.9]} 21.
Rxc8 {[%clk 0:01:28.6]} 21... Rxc8 {[%clk 0:01:37.8]} 22. Kg2 {[%clk 0:01:27.4]}
22... Bb3 {[%clk 0:01:22]} 23. Bd1 {[%clk 0:01:21.5]} 23... Bxd1 {[%clk
0:01:15.7]} 24. Qxd1 {[%clk 0:01:21.8]} 24... Rc3 {[%clk 0:01:13.4]} 25. Qd2
{[%clk 0:01:15.4]} 25... Qc6 {[%clk 0:01:11]} 26. Nxe5 {[%clk 0:01:06.4]} 26...
Qc7 {[%clk 0:01:02.1]} 27. Nf3 {[%clk 0:01:01.4]} 27... Rxa3 {[%clk 0:00:59.6]}
28. Rc1 {[%clk 0:00:52.3]} 28... Rc3 {[%clk 0:01:00.4]} 29. Rd1 {[%clk
0:00:39.2]} 29... Bxb4 {[%clk 0:00:59.5]} 30. Qb2 {[%clk 0:00:22]} 30... Bc5
{[%clk 0:00:57.3]} 31. Nxd4 {[%clk 0:00:18.4]} 31... Bxd4 {[%clk 0:00:57.6]} 32.
Rc1 {[%clk 0:00:17.4]} 32... Rxc1 {[%clk 0:00:57.6]} 33. Qxc1 {[%clk 0:00:17.2]}
33... Qxc1 {[%clk 0:00:58.3]} 34. Kf3 {[%clk 0:00:16.3]} 34... Qd2 {[%clk
0:00:57.9]} 35. Kg3 {[%clk 0:00:16.8]} 35... Qxf2# {[%clk 0:00:58.6]} 0

[Event "Open Nuevo Centro. Jornada 1"]
[Site "Chess.com"]
[Date "2020.06.19"]
[Round "1"]
[White "Casado Andreu, David"]
[Black "Moreno Garc�a, Gonzalo "]
[Result "1-0"]
[WhiteElo "1558"]
[BlackElo "603"]
[TimeControl "180+2"]
[EndTime "10:38:25 PDT"]
[Termination "Victoria de dave6635 por jaque mate"]

1. e4 {[%clk 0:03:01.1]} 1... e5 {[%clk 0:02:52.6]} 2. Nf3 {[%clk 0:03:02.2]}
2... Nc6 {[%clk 0:02:48.5]} 3. Bc4 {[%clk 0:03:01.8]} 3... Nf6 {[%clk
0:02:46.6]} 4. d3 {[%clk 0:02:59.6]} 4... Bb4+ {[%clk 0:02:39]} 5. c3 {[%clk
0:02:58]} 5... Bc5 {[%clk 0:02:36.1]} 6. O-O {[%clk 0:02:21.7]} 6... d6 {[%clk
0:02:32]} 7. Bb3 {[%clk 0:02:21.7]} 7... Bg4 {[%clk 0:02:25.2]} 8. Nbd2 {[%clk
0:02:20.6]} 8... Qd7 {[%clk 0:02:18.8]} 9. Qe2 {[%clk 0:02:20.7]} 9... Nh5
{[%clk 0:02:12.3]} 10. g3 {[%clk 0:02:16.2]} 10... Bh3 {[%clk 0:02:06.3]} 11.
Re1 {[%clk 0:02:16.6]} 11... Nf4 {[%clk 0:02:01.8]} 12. Qd1 {[%clk 0:02:03.4]}
12... Bg2 {[%clk 0:01:55.9]} 13. Nf1 {[%clk 0:01:57.1]} 13... Bxf3 {[%clk
0:01:51.7]} 14. Qxf3 {[%clk 0:01:57.4]} 14... O-O-O {[%clk 0:01:44.5]} 15. Ne3
{[%clk 0:01:55.9]} 15... a6 {[%clk 0:01:42.9]} 16. gxf4 {[%clk 0:01:49.1]} 16...
exf4 {[%clk 0:01:42.7]} 17. Ng2 {[%clk 0:01:48.6]} 17... g5 {[%clk 0:01:36.8]}
18. Bd1 {[%clk 0:01:41.9]} 18... f6 {[%clk 0:01:36.9]} 19. Qg4 {[%clk
0:01:42.6]} 19... f5 {[%clk 0:01:33.1]} 20. Qxf5 {[%clk 0:01:39.7]} 20... Rhe8
{[%clk 0:01:25]} 21. Bg4 {[%clk 0:01:29.5]} 21... Re6 {[%clk 0:01:19.9]} 22.
Qxe6 {[%clk 0:01:28.7]} 22... Ne5 {[%clk 0:01:13.9]} 23. Qxd7+ {[%clk
0:01:25.6]} 23... Nxd7 {[%clk 0:01:10.1]} 24. d4 {[%clk 0:01:23.6]} 24... Bb6
{[%clk 0:01:05.5]} 25. h4 {[%clk 0:01:24.2]} 25... Re8 {[%clk 0:01:00.4]} 26.
hxg5 {[%clk 0:01:17.7]} 26... Rf8 {[%clk 0:00:53.3]} 27. Bxf4 {[%clk 0:01:16.8]}
27... Rf7 {[%clk 0:00:41.8]} 28. Be3 {[%clk 0:01:12.6]} 28... Kb8 {[%clk
0:00:29]} 29. Bxd7 {[%clk 0:01:12.8]} 29... Rxd7 {[%clk 0:00:27.8]} 30. f4
{[%clk 0:01:12.1]} 30... c5 {[%clk 0:00:24.9]} 31. Rad1 {[%clk 0:01:09.9]} 31...
cxd4 {[%clk 0:00:23.7]} 32. Bxd4 {[%clk 0:01:10.5]} 32... Bxd4+ {[%clk
0:00:20.8]} 33. Rxd4 {[%clk 0:01:10.6]} 33... d5 {[%clk 0:00:20.2]} 34. Rxd5
{[%clk 0:01:11]} 34... Rxd5 {[%clk 0:00:19.8]} 35. exd5 {[%clk 0:01:12.2]} 35...
h5 {[%clk 0:00:18.9]} 36. Re7 {[%clk 0:01:12.4]} 36... Kc8 {[%clk 0:00:19]} 37.
Rh7 {[%clk 0:01:12.4]} 37... Kd8 {[%clk 0:00:19.3]} 38. Rxb7 {[%clk 0:01:12.8]}
38... Kc8 {[%clk 0:00:19.4]} 39. Rh7 {[%clk 0:01:12.8]} 39... Kd8 {[%clk
0:00:19.9]} 40. g6 {[%clk 0:01:13.5]} 40... Ke8 {[%clk 0:00:20.2]} 41. g7 {[%clk
0:01:14.4]} 41... Kd8 {[%clk 0:00:17]} 42. g8=Q# {[%clk 0:01:14]} 1

[Event "Open Nuevo Centro. Jornada 1"]
[Site "Chess.com"]
[Date "2020.06.19"]
[Round "1"]
[White "Mart�nez Cuenca, Jose Andr�s"]
[Black "Kovacevic, Slobodan"]
[Result "0-1"]
[WhiteElo "1194"]
[BlackElo "2054"]
[TimeControl "180+2"]
[EndTime "10:38:35 PDT"]
[Termination "Victoria de nikko110 por tiempo"]

1. e4 {[%clk 0:02:54]} 1... c5 {[%clk 0:02:58.5]} 2. Nf3 {[%clk 0:02:51.9]} 2...
e6 {[%clk 0:02:57.4]} 3. d4 {[%clk 0:02:48.3]} 3... cxd4 {[%clk 0:02:55.9]} 4.
Nxd4 {[%clk 0:02:48.1]} 4... a6 {[%clk 0:02:54.4]} 5. Nc3 {[%clk 0:02:46.2]}
5... Qc7 {[%clk 0:02:51.9]} 6. Be3 {[%clk 0:02:40.4]} 6... Nf6 {[%clk
0:02:50.4]} 7. Bd3 {[%clk 0:02:37.5]} 7... b5 {[%clk 0:02:48.6]} 8. O-O {[%clk
0:02:33.4]} 8... Bb7 {[%clk 0:02:47]} 9. f3 {[%clk 0:02:27.5]} 9... Bd6 {[%clk
0:02:43.5]} 10. a4 {[%clk 0:02:08.2]} 10... b4 {[%clk 0:02:38]} 11. Nce2 {[%clk
0:01:54.7]} 11... Bxh2+ {[%clk 0:02:35.2]} 12. Kf2 {[%clk 0:01:49.9]} 12... Bd6
{[%clk 0:02:31.6]} 13. Ke1 {[%clk 0:01:35.6]} 13... Be7 {[%clk 0:02:27.2]} 14.
Rh1 {[%clk 0:01:01.5]} 14... Nc6 {[%clk 0:02:23.1]} 15. Nxc6 {[%clk 0:01:00.9]}
15... Bxc6 {[%clk 0:02:21.6]} 16. Nd4 {[%clk 0:00:59.2]} 16... Bb7 {[%clk
0:02:19.2]} 17. Rh3 {[%clk 0:00:52.2]} 17... h6 {[%clk 0:02:14.7]} 18. Bf2
{[%clk 0:00:48.1]} 18... d5 {[%clk 0:02:09.9]} 19. Rg3 {[%clk 0:00:43.1]} 19...
g6 {[%clk 0:02:01.8]} 20. e5 {[%clk 0:00:37.1]} 20... Qxe5+ {[%clk 0:01:58.3]}
21. Kf1 {[%clk 0:00:23.3]} 21... Nh5 {[%clk 0:01:54.3]} 22. Rg4 {[%clk
0:00:20.6]} 22... Qh2 {[%clk 0:01:47.7]} 23. Ke1 {[%clk 0:00:19.3]} 23... Nf6
{[%clk 0:01:36.1]} 24. Rh4 {[%clk 0:00:18]} 24... Qxg2 {[%clk 0:01:31]} 25. Ke2
{[%clk 0:00:16.9]} 25... Nh5 {[%clk 0:01:25.3]} 26. Qg1 {[%clk 0:00:16.3]} 26...
Qxg1 {[%clk 0:01:17.1]} 27. Bxg1 {[%clk 0:00:16.2]} 27... Bxh4 {[%clk
0:01:13.7]} 28. Bf2 {[%clk 0:00:16.1]} 28... Bxf2 {[%clk 0:01:10.6]} 29. Kxf2
{[%clk 0:00:17.1]} 29... e5 {[%clk 0:01:07.7]} 30. Ne2 {[%clk 0:00:16.6]} 30...
Ke7 {[%clk 0:01:05.1]} 31. Ke3 {[%clk 0:00:11.2]} 31... f5 {[%clk 0:01:01.2]}
32. Kf2 {[%clk 0:00:09.4]} 32... Kf6 {[%clk 0:00:59.2]} 33. Ke3 {[%clk
0:00:08.7]} 33... Rhc8 {[%clk 0:00:56.3]} 34. f4 {[%clk 0:00:09.2]} 34... e4
{[%clk 0:00:53.6]} 35. Bxa6 {[%clk 0:00:04.3]} 35... Bxa6 {[%clk 0:00:50.1]} 36.
Nd4 {[%clk 0:00:03.7]} 36... Rc4 {[%clk 0:00:43]} 37. Rh1 {[%clk 0:00:03.9]}
37... Rac8 {[%clk 0:00:38.6]} 38. Rg1 {[%clk 0:00:04.7]} 38... Nxf4 {[%clk
0:00:33.2]} 0